[Event "Live Chess"]
[Site "Chess.com"]
[Date "2023.05.21"]
[Round "-"]
[White "Singapourfeuj"]
[Black "Tema1107"]
[Result "0-1"]
[WhiteElo "2183"]
[BlackElo "1957"]
[TimeControl "300"]
[EndTime "8:30:46 PDT"]
[Termination "Tema1107 won by resignation"]

1. d4 {[%clk 0:04:56.1]} 1... Nf6 {[%clk 0:04:59.4]} 2. Nf3 {[%clk 0:04:38.5]}
2... e6 {[%clk 0:04:50.7]} 3. g3 {[%clk 0:04:37.1]} 3... b5 {[%clk 0:04:49.6]}
4. Bg2 {[%clk 0:04:27.3]} 4... Bb7 {[%clk 0:04:47.6]} 5. O-O {[%clk 0:04:25.6]}
5... c5 {[%clk 0:04:41.6]} 6. a4 {[%clk 0:04:24]} 6... b4 {[%clk 0:04:39.3]} 7.
dxc5 {[%clk 0:04:20.4]} 7... Bxc5 {[%clk 0:04:37.9]} 8. Nbd2 {[%clk 0:04:18.7]}
8... O-O {[%clk 0:04:36.3]} 9. Nb3 {[%clk 0:04:17.5]} 9... Be7 {[%clk
0:04:35.3]} 10. Bg5 {[%clk 0:04:12.5]} 10... h6 {[%clk 0:04:30.9]} 11. Bf4
{[%clk 0:04:09.5]} 11... d6 {[%clk 0:04:18]} 12. a5 {[%clk 0:04:07.7]} 12... Na6
{[%clk 0:04:15.1]} 13. Qd2 {[%clk 0:03:56.9]} 13... e5 {[%clk 0:03:59.8]} 14.
Bxh6 {[%clk 0:03:55.6]} 14... gxh6 {[%clk 0:03:58.1]} 15. Qxh6 {[%clk
0:03:54.6]} 15... Nh7 {[%clk 0:03:55.4]} 16. h4 {[%clk 0:03:49.2]} 16... Qd7
{[%clk 0:03:38.1]} 17. Rfd1 {[%clk 0:03:45.5]} 17... Qe6 {[%clk 0:03:32.7]} 18.
Qxe6 {[%clk 0:03:43.1]} 18... fxe6 {[%clk 0:03:32.6]} 19. Ng5 {[%clk 0:03:41.9]}
19... Bxg2 {[%clk 0:03:30.6]} 20. Nxh7 {[%clk 0:03:40.8]} 20... Kxh7 {[%clk
0:03:20.6]} 21. Kxg2 {[%clk 0:03:39.5]} 21... Rac8 {[%clk 0:03:17.9]} 0-1

[Event "Live Chess"]
[Site "Chess.com"]
[Date "2023.05.21"]
[Round "-"]
[White "chessfiction"]
[Black "Alfiedog12"]
[Result "1-0"]
[WhiteElo "2297"]
[BlackElo "870"]
[TimeControl "300"]
[EndTime "8:30:50 PDT"]
[Termination "chessfiction won by resignation"]

1. d4 {[%clk 0:04:56.8]} 1... d5 {[%clk 0:04:57.9]} 2. e4 {[%clk 0:04:55.8]}
2... c6 {[%clk 0:04:56.8]} 3. Nc3 {[%clk 0:04:54.4]} 3... dxe4 {[%clk
0:04:54.4]} 4. f3 {[%clk 0:04:54.3]} 4... Nf6 {[%clk 0:04:47.9]} 5. Bc4 {[%clk
0:04:52.9]} 5... Nbd7 {[%clk 0:04:41.1]} 6. Bg5 {[%clk 0:04:49]} 6... e6 {[%clk
0:04:38.4]} 7. fxe4 {[%clk 0:04:46.5]} 7... Be7 {[%clk 0:04:36.2]} 8. Nf3 {[%clk
0:04:44.5]} 8... h6 {[%clk 0:04:29.4]} 9. Bh4 {[%clk 0:04:42.7]} 9... O-O {[%clk
0:04:24.9]} 10. O-O {[%clk 0:04:40.7]} 10... Qc7 {[%clk 0:04:19.6]} 11. e5
{[%clk 0:04:38.1]} 11... Nd5 {[%clk 0:04:07.4]} 12. Nxd5 {[%clk 0:04:36.5]}
12... cxd5 {[%clk 0:04:06.4]} 13. Bxe7 {[%clk 0:04:35.5]} 13... Re8 {[%clk
0:04:04.3]} 14. Bd6 {[%clk 0:04:31.5]} 14... Qxc4 {[%clk 0:04:01.9]} 15. c3
{[%clk 0:04:30.8]} 15... b5 {[%clk 0:03:56.4]} 16. Nd2 {[%clk 0:04:29.7]} 16...
Qd3 {[%clk 0:03:47.5]} 17. Qh5 {[%clk 0:04:21.1]} 17... Qxd2 {[%clk 0:03:41.6]}
18. Qxf7+ {[%clk 0:04:19.7]} 18... Kh8 {[%clk 0:03:36.7]} 19. Qxe8+ {[%clk
0:04:18.3]} 19... Kh7 {[%clk 0:03:33.6]} 20. Rf7 {[%clk 0:04:04]} 20... Bb7
{[%clk 0:03:29.6]} 21. Qxd7 {[%clk 0:04:01.1]} 21... Qe3+ {[%clk 0:03:26]} 22.
Kh1 {[%clk 0:03:59.6]} 1-0

[Event "Live Chess"]
[Site "Chess.com"]
[Date "2023.05.21"]
[Round "-"]
[White "JohanKjeldahl"]
[Black "JanMur7"]
[Result "0-1"]
[WhiteElo "1880"]
[BlackElo "1970"]
[TimeControl "300"]
[EndTime "8:31:04 PDT"]
[Termination "JanMur7 won by resignation"]

1. c4 {[%clk 0:04:56.9]} 1... c5 {[%clk 0:04:58.9]} 2. Nc3 {[%clk 0:04:55.2]}
2... Nc6 {[%clk 0:04:58.6]} 3. Nf3 {[%clk 0:04:53.6]} 3... g6 {[%clk 0:04:58.3]}
4. d4 {[%clk 0:04:52.1]} 4... cxd4 {[%clk 0:04:57.8]} 5. Nxd4 {[%clk 0:04:50.7]}
5... Bg7 {[%clk 0:04:57.5]} 6. e3 {[%clk 0:04:49.5]} 6... d6 {[%clk 0:04:54.4]}
7. b3 {[%clk 0:04:48.4]} 7... Nf6 {[%clk 0:04:52.9]} 8. Bb2 {[%clk 0:04:47.3]}
8... O-O {[%clk 0:04:52.6]} 9. Be2 {[%clk 0:04:45.8]} 9... e5 {[%clk 0:04:40.9]}
10. Nxc6 {[%clk 0:04:41.4]} 10... bxc6 {[%clk 0:04:40.1]} 11. O-O {[%clk
0:04:37.5]} 11... d5 {[%clk 0:04:39.6]} 12. cxd5 {[%clk 0:04:33.1]} 12... cxd5
{[%clk 0:04:39.5]} 13. Rc1 {[%clk 0:04:28.3]} 13... Bb7 {[%clk 0:04:33.2]} 14.
Bf3 {[%clk 0:04:25.7]} 14... Rb8 {[%clk 0:04:25.8]} 15. Na4 {[%clk 0:04:20.3]}
15... e4 {[%clk 0:04:14.4]} 16. Be2 {[%clk 0:04:16.8]} 16... Nd7 {[%clk
0:04:05.1]} 17. Bxg7 {[%clk 0:04:13.7]} 17... Kxg7 {[%clk 0:04:05]} 18. Qd4+
{[%clk 0:04:11.6]} 18... Qf6 {[%clk 0:03:58.8]} 19. Rfd1 {[%clk 0:04:05.4]}
19... Qxd4 {[%clk 0:03:56.3]} 20. Rxd4 {[%clk 0:04:03.2]} 20... Rfc8 {[%clk
0:03:54.7]} 21. Rxc8 {[%clk 0:03:55.2]} 21... Rxc8 {[%clk 0:03:54.6]} 22. h3
{[%clk 0:03:32.3]} 22... Rc2 {[%clk 0:03:47.2]} 23. Bb5 {[%clk 0:03:29.9]} 23...
Ne5 {[%clk 0:03:34]} 24. a3 {[%clk 0:02:59.2]} 24... Rc1+ {[%clk 0:03:11.3]} 25.
Kh2 {[%clk 0:02:56.9]} 25... Rc2 {[%clk 0:03:10]} 26. Kg3 {[%clk 0:02:55.1]}
26... h5 {[%clk 0:03:01.7]} 27. b4 {[%clk 0:02:47.1]} 27... g5 {[%clk
0:02:46.7]} 28. Nc5 {[%clk 0:02:42.7]} 28... h4+ {[%clk 0:02:43.1]} 29. Kh2
{[%clk 0:02:40.9]} 29... Rxf2 {[%clk 0:02:38.2]} 30. Nxb7 {[%clk 0:02:35.9]}
30... Nf3+ {[%clk 0:02:32.8]} 31. Kh1 {[%clk 0:02:33]} 31... Nxd4 {[%clk
0:02:31.1]} 32. exd4 {[%clk 0:02:30.4]} 32... e3 {[%clk 0:02:30]} 33. Kg1 {[%clk
0:02:24]} 33... Ra2 {[%clk 0:02:28.4]} 34. Nc5 {[%clk 0:02:11.2]} 34... Ra1+
{[%clk 0:01:59.8]} 35. Kh2 {[%clk 0:02:09.4]} 35... Rxa3 {[%clk 0:01:53]} 36.
Nd3 {[%clk 0:02:01.2]} 36... e2 {[%clk 0:01:37.5]} 37. Ne1 {[%clk 0:01:57.1]}
37... Ra1 {[%clk 0:01:30.2]} 38. Nf3 {[%clk 0:01:55.2]} 38... e1=Q {[%clk
0:01:22.8]} 39. Nxe1 {[%clk 0:01:53.8]} 39... Rxe1 {[%clk 0:01:22.6]} 40. Bc6
{[%clk 0:01:52.8]} 40... Rd1 {[%clk 0:01:21.4]} 41. Bxd5 {[%clk 0:01:51.7]}
41... Rxd4 {[%clk 0:01:20.7]} 42. Bc6 {[%clk 0:01:49.7]} 42... Rxb4 {[%clk
0:01:19.9]} 0-1

[Event "Live Chess"]
[Site "Chess.com"]
[Date "2023.05.21"]
[Round "-"]
[White "Olisingapore"]
[Black "Pablo_dmp"]
[Result "1-0"]
[WhiteElo "1819"]
[BlackElo "1849"]
[TimeControl "300"]
[EndTime "8:31:16 PDT"]
[Termination "Olisingapore won by resignation"]

1. d4 {[%clk 0:04:57.9]} 1... Nf6 {[%clk 0:04:58.8]} 2. c4 {[%clk 0:04:57.6]}
2... e6 {[%clk 0:04:58.2]} 3. g3 {[%clk 0:04:55.9]} 3... Bb4+ {[%clk 0:04:55.1]}
4. Nd2 {[%clk 0:04:53.4]} 4... b6 {[%clk 0:04:48]} 5. Bg2 {[%clk 0:04:52.9]}
5... d5 {[%clk 0:04:46.1]} 6. cxd5 {[%clk 0:04:47.3]} 6... Nxd5 {[%clk 0:04:42]}
7. a3 {[%clk 0:04:44.4]} 7... Be7 {[%clk 0:04:34.5]} 8. e4 {[%clk 0:04:39.1]}
8... Nf6 {[%clk 0:04:32.8]} 9. Ngf3 {[%clk 0:04:22.7]} 9... Bb7 {[%clk
0:04:30.7]} 10. O-O {[%clk 0:04:08]} 10... Nxe4 {[%clk 0:04:27.4]} 11. Nxe4
{[%clk 0:04:06.8]} 11... Bxe4 {[%clk 0:04:25.8]} 12. Re1 {[%clk 0:04:06.4]}
12... Bb7 {[%clk 0:04:24.4]} 13. Bf4 {[%clk 0:04:02.7]} 13... Nd7 {[%clk
0:04:21.1]} 14. Rc1 {[%clk 0:04:01.1]} 14... Rc8 {[%clk 0:04:18.9]} 15. Qa4
{[%clk 0:03:56.3]} 15... O-O {[%clk 0:04:16.9]} 16. Qxa7 {[%clk 0:03:54.9]}
16... Bxf3 {[%clk 0:04:14.4]} 17. Bxf3 {[%clk 0:03:52.6]} 17... c5 {[%clk
0:04:09.1]} 18. Bb7 {[%clk 0:03:38]} 18... Rc7 {[%clk 0:03:59.8]} 19. Bxc7
{[%clk 0:03:24.2]} 19... Qxc7 {[%clk 0:03:59.7]} 20. dxc5 {[%clk 0:03:23.2]}
20... Nxc5 {[%clk 0:03:57.9]} 21. b4 {[%clk 0:03:16.2]} 21... Qxb7 {[%clk
0:03:56.9]} 22. Qxb7 {[%clk 0:03:14]} 22... Nxb7 {[%clk 0:03:56.8]} 23. Rc7
{[%clk 0:03:04.1]} 23... Bxb4 {[%clk 0:03:27.8]} 24. axb4 {[%clk 0:03:00.9]}
24... Nd6 {[%clk 0:03:26.2]} 25. Rec1 {[%clk 0:02:54.5]} 25... Nb5 {[%clk
0:03:20.9]} 26. Rc8 {[%clk 0:02:51.9]} 26... Nd4 {[%clk 0:03:19.2]} 27. Rxf8+
{[%clk 0:02:47.8]} 27... Kxf8 {[%clk 0:03:19.1]} 28. Rc8+ {[%clk 0:02:30.2]}
28... Ke7 {[%clk 0:03:17.7]} 29. Rh8 {[%clk 0:02:27.4]} 29... h6 {[%clk
0:03:16.2]} 30. Rg8 {[%clk 0:02:25.3]} 30... Kf6 {[%clk 0:03:13.6]} 31. Rb8
{[%clk 0:02:23.4]} 31... b5 {[%clk 0:03:12.1]} 32. f4 {[%clk 0:02:20.9]} 32...
Kf5 {[%clk 0:03:06.6]} 33. Kf2 {[%clk 0:02:20.4]} 33... f6 {[%clk 0:03:04]} 34.
Ke3 {[%clk 0:02:18.2]} 34... e5 {[%clk 0:03:02]} 35. fxe5 {[%clk 0:01:57.3]}
35... fxe5 {[%clk 0:03:01.9]} 36. Rc8 {[%clk 0:01:54.2]} 36... Nc2+ {[%clk
0:02:59.2]} 37. Rxc2 {[%clk 0:01:50.2]} 1-0

[Event "Live Chess"]
[Site "Chess.com"]
[Date "2023.05.21"]
[Round "-"]
[White "GEMdzq"]
[Black "LordBenin"]
[Result "1-0"]
[WhiteElo "2226"]
[BlackElo "1401"]
[TimeControl "300"]
[EndTime "8:31:19 PDT"]
[Termination "GEMdzq won by resignation"]

1. e4 {[%clk 0:04:58.5]} 1... c6 {[%clk 0:04:56.8]} 2. d4 {[%clk 0:04:57.6]}
2... d5 {[%clk 0:04:55.3]} 3. e5 {[%clk 0:04:57.2]} 3... Bf5 {[%clk 0:04:53.4]}
4. h4 {[%clk 0:04:56.2]} 4... h5 {[%clk 0:04:51.2]} 5. c4 {[%clk 0:04:54.3]}
5... e6 {[%clk 0:04:49.9]} 6. Nc3 {[%clk 0:04:53.8]} 6... Nd7 {[%clk 0:04:47.9]}
7. cxd5 {[%clk 0:04:51.3]} 7... cxd5 {[%clk 0:04:38.7]} 8. Bd3 {[%clk
0:04:50.2]} 8... Bxd3 {[%clk 0:04:36]} 9. Qxd3 {[%clk 0:04:50.1]} 9... a6 {[%clk
0:04:34.8]} 10. Nf3 {[%clk 0:04:47.9]} 10... Ne7 {[%clk 0:04:31.9]} 11. Bg5
{[%clk 0:04:46.5]} 11... Qc7 {[%clk 0:04:26.6]} 12. O-O {[%clk 0:04:43.9]} 12...
Nf5 {[%clk 0:04:25]} 13. Nxd5 {[%clk 0:04:42.6]} 13... exd5 {[%clk 0:04:18.1]}
14. Qxf5 {[%clk 0:04:41.4]} 14... Nb6 {[%clk 0:04:07.2]} 15. e6 {[%clk
0:04:36.9]} 15... f6 {[%clk 0:03:56.5]} 16. Qg6+ {[%clk 0:04:33.3]} 16... Ke7
{[%clk 0:03:52]} 17. Rac1 {[%clk 0:04:25.5]} 17... Qd6 {[%clk 0:03:44.1]} 18.
Qf7+ {[%clk 0:04:18.8]} 18... Kd8 {[%clk 0:03:40.1]} 19. Bxf6+ {[%clk
0:04:16.9]} 19... gxf6 {[%clk 0:03:24.9]} 20. Qxf6+ {[%clk 0:04:16.8]} 20... Qe7
{[%clk 0:03:17.2]} 21. Qxh8 {[%clk 0:04:14.1]} 21... Nc4 {[%clk 0:03:13.6]} 22.
b3 {[%clk 0:04:08.3]} 22... Nd6 {[%clk 0:03:08.4]} 23. Ne5 {[%clk 0:04:04.3]}
23... Qg7 {[%clk 0:02:41.3]} 24. Qxh5 {[%clk 0:04:01.9]} 24... Ne4 {[%clk
0:02:30.1]} 25. Nf7+ {[%clk 0:03:49.6]} 1-0

[Event "Live Chess"]
[Site "Chess.com"]
[Date "2023.05.21"]
[Round "-"]
[White "Doge_Dandolo"]
[Black "ZackirtyChess"]
[Result "1-0"]
[WhiteElo "1850"]
[BlackElo "1162"]
[TimeControl "300"]
[EndTime "8:31:21 PDT"]
[Termination "Doge_Dandolo won by resignation"]

1. Nf3 {[%clk 0:04:58.1]} 1... Nf6 {[%clk 0:04:55.3]} 2. c4 {[%clk 0:04:57.5]}
2... Nc6 {[%clk 0:04:50.5]} 3. g3 {[%clk 0:04:53.5]} 3... d5 {[%clk 0:04:50]} 4.
cxd5 {[%clk 0:04:48.8]} 4... Nxd5 {[%clk 0:04:49.1]} 5. Nc3 {[%clk 0:04:42.5]}
5... Nf6 {[%clk 0:04:48.9]} 6. Bg2 {[%clk 0:04:39.6]} 6... e5 {[%clk 0:04:48.3]}
7. d3 {[%clk 0:04:37.8]} 7... Bb4 {[%clk 0:04:47.7]} 8. O-O {[%clk 0:04:36.3]}
8... Bg4 {[%clk 0:04:47.2]} 9. a3 {[%clk 0:04:34.9]} 9... Ba5 {[%clk 0:04:45.5]}
10. b4 {[%clk 0:04:33.6]} 10... Bb6 {[%clk 0:04:45.1]} 11. b5 {[%clk 0:04:30.5]}
11... a6 {[%clk 0:04:44.8]} 12. bxc6 {[%clk 0:04:29.3]} 12... bxc6 {[%clk
0:04:44.4]} 13. Nxe5 {[%clk 0:04:27.1]} 13... Qd7 {[%clk 0:04:39.6]} 14. Bxc6
{[%clk 0:04:23.9]} 14... Qxc6 {[%clk 0:04:34.5]} 15. Nxc6 {[%clk 0:04:22]} 15...
Bxf2+ {[%clk 0:04:34.2]} 16. Rxf2 {[%clk 0:04:19.4]} 16... Bxe2 {[%clk
0:04:34.1]} 17. Rxe2+ {[%clk 0:04:18.3]} 17... Kd7 {[%clk 0:04:32.4]} 18. Ne5+
{[%clk 0:04:16.2]} 18... Kd6 {[%clk 0:04:31.5]} 19. Bf4 {[%clk 0:04:14.6]} 19...
Kc5 {[%clk 0:04:31]} 20. Ne4+ {[%clk 0:04:11.2]} 1-0

[Event "Live Chess"]
[Site "Chess.com"]
[Date "2023.05.21"]
[Round "-"]
[White "gmnorfolk"]
[Black "Missedidea"]
[Result "1-0"]
[WhiteElo "2116"]
[BlackElo "1774"]
[TimeControl "300"]
[EndTime "8:31:27 PDT"]
[Termination "gmnorfolk won on time"]

1. d4 {[%clk 0:04:58.8]} 1... Nf6 {[%clk 0:04:57.7]} 2. c4 {[%clk 0:04:57.4]}
2... g6 {[%clk 0:04:55.8]} 3. Nc3 {[%clk 0:04:57]} 3... Bg7 {[%clk 0:04:54.8]}
4. e4 {[%clk 0:04:55.8]} 4... d6 {[%clk 0:04:53.8]} 5. Be2 {[%clk 0:04:55.3]}
5... O-O {[%clk 0:04:52]} 6. Be3 {[%clk 0:04:54.8]} 6... e5 {[%clk 0:04:45]} 7.
d5 {[%clk 0:04:54]} 7... c5 {[%clk 0:04:31.9]} 8. h4 {[%clk 0:04:49.7]} 8... h5
{[%clk 0:04:27.1]} 9. Qd2 {[%clk 0:04:45.8]} 9... Nbd7 {[%clk 0:04:19.9]} 10. f3
{[%clk 0:04:42.9]} 10... a6 {[%clk 0:04:17.6]} 11. a4 {[%clk 0:04:36.1]} 11...
Rb8 {[%clk 0:04:15.4]} 12. Nh3 {[%clk 0:04:32.9]} 12... Qa5 {[%clk 0:04:01.3]}
13. O-O {[%clk 0:04:22.9]} 13... Qb4 {[%clk 0:03:57.5]} 14. Qc2 {[%clk
0:04:12.8]} 14... Qb6 {[%clk 0:03:35]} 15. a5 {[%clk 0:04:05.3]} 15... Qc7
{[%clk 0:03:32.7]} 16. Rfb1 {[%clk 0:04:00]} 16... Nh7 {[%clk 0:03:29.7]} 17. b4
{[%clk 0:03:53.8]} 17... f5 {[%clk 0:03:18.8]} 18. b5 {[%clk 0:03:43.7]} 18...
f4 {[%clk 0:03:14.1]} 19. Bf2 {[%clk 0:03:38.2]} 19... Ndf6 {[%clk 0:03:07.5]}
20. bxa6 {[%clk 0:03:34]} 20... bxa6 {[%clk 0:03:05.4]} 21. Rxb8 {[%clk
0:03:33.1]} 21... Qxb8 {[%clk 0:03:03.5]} 22. Rb1 {[%clk 0:03:32.6]} 22... Qc7
{[%clk 0:03:01.2]} 23. Rb6 {[%clk 0:03:31.1]} 23... Bxh3 {[%clk 0:02:44.5]} 24.
gxh3 {[%clk 0:03:29.4]} 24... Qd7 {[%clk 0:02:37]} 25. Kh2 {[%clk 0:03:24.1]}
25... g5 {[%clk 0:02:34.8]} 26. Qb3 {[%clk 0:03:16.4]} 26... g4 {[%clk
0:02:28.5]} 27. Rb7 {[%clk 0:03:02.9]} 27... Qc8 {[%clk 0:02:22.6]} 28. Kg2
{[%clk 0:02:53.2]} 28... gxh3+ {[%clk 0:02:15.3]} 29. Kh2 {[%clk 0:02:51.7]}
29... Ng4+ {[%clk 0:02:09]} 30. fxg4 {[%clk 0:02:47.7]} 30... hxg4 {[%clk
0:02:07.9]} 31. Qb6 {[%clk 0:02:16.6]} 31... g3+ {[%clk 0:02:05]} 32. Bxg3
{[%clk 0:02:13.7]} 32... fxg3+ {[%clk 0:02:02.5]} 33. Kxg3 {[%clk 0:02:13.4]}
33... Qd8 {[%clk 0:01:49.6]} 34. Qxd8 {[%clk 0:02:09]} 34... Rxd8 {[%clk
0:01:47]} 35. Bg4 {[%clk 0:02:07.6]} 35... Nf6 {[%clk 0:01:36.3]} 36. Be6+
{[%clk 0:02:06.6]} 36... Kh8 {[%clk 0:01:32.3]} 37. Kxh3 {[%clk 0:02:02.5]}
37... Nh5 {[%clk 0:01:30.9]} 38. Ne2 {[%clk 0:01:50.5]} 38... Bh6 {[%clk
0:01:28.6]} 39. Rd7 {[%clk 0:01:44.9]} 39... Rxd7 {[%clk 0:01:25.2]} 40. Bxd7
{[%clk 0:01:43.8]} 40... Bd2 {[%clk 0:01:19.5]} 41. Bc8 {[%clk 0:01:37]} 41...
Bxa5 {[%clk 0:01:17.4]} 42. Kg4 {[%clk 0:01:30.3]} 42... Nf6+ {[%clk 0:01:14.5]}
43. Kf5 {[%clk 0:01:28.7]} 43... Kg7 {[%clk 0:01:12.6]} 44. Ke6 {[%clk
0:01:22.5]} 44... Be1 {[%clk 0:01:07.4]} 45. Kxd6 {[%clk 0:01:14.7]} 45... Nxe4+
{[%clk 0:01:05.9]} 46. Kxe5 {[%clk 0:01:11.5]} 46... Nd2 {[%clk 0:00:58.7]} 47.
Bxa6 {[%clk 0:01:05.6]} 47... Bxh4 {[%clk 0:00:52.8]} 48. d6 {[%clk 0:01:01]}
48... Kf7 {[%clk 0:00:44.2]} 49. Kd5 {[%clk 0:00:56]} 49... Nb3 {[%clk
0:00:34.8]} 50. Bb5 {[%clk 0:00:50.4]} 50... Bd8 {[%clk 0:00:25.3]} 51. Nf4
{[%clk 0:00:46.2]} 51... Bb6 {[%clk 0:00:18.9]} 52. Kc6 {[%clk 0:00:42.3]} 52...
Bd8 {[%clk 0:00:15.3]} 53. Nd5 {[%clk 0:00:38.8]} 53... Nd4+ {[%clk 0:00:13]}
54. Kd7 {[%clk 0:00:36.7]} 54... Nxb5 {[%clk 0:00:10.6]} 55. cxb5 {[%clk
0:00:33.4]} 55... Ba5 {[%clk 0:00:08.1]} 56. b6 {[%clk 0:00:32.5]} 56... c4
{[%clk 0:00:07]} 57. b7 {[%clk 0:00:31.3]} 57... c3 {[%clk 0:00:05.4]} 58. Nxc3
{[%clk 0:00:30]} 58... Bxc3 {[%clk 0:00:03.7]} 59. b8=Q {[%clk 0:00:29.2]} 59...
Bf6 {[%clk 0:00:01.5]} 60. Qe8+ {[%clk 0:00:26.9]} 60... Kg7 {[%clk 0:00:00.6]}
61. Qe7+ {[%clk 0:00:24.3]} 1-0

[Event "Live Chess"]
[Site "Chess.com"]
[Date "2023.05.21"]
[Round "-"]
[White "robotking06"]
[Black "raminguy"]
[Result "0-1"]
[WhiteElo "352"]
[BlackElo "1937"]
[TimeControl "300"]
[EndTime "8:31:27 PDT"]
[Termination "raminguy won by resignation"]

1. e4 {[%clk 0:04:58.7]} 1... e5 {[%clk 0:04:59]} 2. d4 {[%clk 0:04:57.1]} 2...
exd4 {[%clk 0:04:56.6]} 3. Qxd4 {[%clk 0:04:56]} 3... Nc6 {[%clk 0:04:55.3]} 4.
Qd5 {[%clk 0:04:52.2]} 4... Nf6 {[%clk 0:04:53.8]} 5. Qf5 {[%clk 0:04:50.2]}
5... d5 {[%clk 0:04:51.7]} 6. Qf4 {[%clk 0:04:39]} 6... Bd6 {[%clk 0:04:47.4]}
7. Qg5 {[%clk 0:04:34.3]} 7... O-O {[%clk 0:04:44.9]} 8. Bb5 {[%clk 0:04:22.7]}
8... h6 {[%clk 0:04:43.4]} 9. Qh5 {[%clk 0:04:19.2]} 9... Nxh5 {[%clk
0:04:41.7]} 10. g4 {[%clk 0:04:16.9]} 10... Bxg4 {[%clk 0:04:39.9]} 11. h3
{[%clk 0:04:15.4]} 0-1

[Event "Live Chess"]
[Site "Chess.com"]
[Date "2023.05.21"]
[Round "-"]
[White "OceanFloater"]
[Black "Biranidun"]
[Result "0-1"]
[WhiteElo "1033"]
[BlackElo "2520"]
[TimeControl "300"]
[EndTime "8:31:29 PDT"]
[Termination "Biranidun won by checkmate"]

1. e4 {[%clk 0:04:56.9]} 1... c5 {[%clk 0:04:58.9]} 2. Nf3 {[%clk 0:04:56.2]}
2... d6 {[%clk 0:04:58.5]} 3. Nc3 {[%clk 0:04:54.2]} 3... Nf6 {[%clk 0:04:57.9]}
4. Bc4 {[%clk 0:04:52.9]} 4... g6 {[%clk 0:04:57.3]} 5. d4 {[%clk 0:04:50.3]}
5... cxd4 {[%clk 0:04:55.6]} 6. Nxd4 {[%clk 0:04:49.3]} 6... Bg7 {[%clk
0:04:55.2]} 7. O-O {[%clk 0:04:40]} 7... O-O {[%clk 0:04:54.4]} 8. Bg5 {[%clk
0:04:34.1]} 8... Nc6 {[%clk 0:04:53.1]} 9. Nxc6 {[%clk 0:04:32.1]} 9... bxc6
{[%clk 0:04:53]} 10. Qd2 {[%clk 0:04:29.3]} 10... Rb8 {[%clk 0:04:51]} 11. Bb3
{[%clk 0:04:21.6]} 11... Be6 {[%clk 0:04:49.8]} 12. Bh6 {[%clk 0:04:16.6]} 12...
Bxh6 {[%clk 0:04:46.4]} 13. Qxh6 {[%clk 0:04:15]} 13... Qa5 {[%clk 0:04:46.3]}
14. Qe3 {[%clk 0:04:10.2]} 14... Nd7 {[%clk 0:04:43.2]} 15. a3 {[%clk
0:03:55.2]} 15... Bxb3 {[%clk 0:04:40.1]} 16. cxb3 {[%clk 0:03:51.1]} 16... Rxb3
{[%clk 0:04:40]} 17. Rac1 {[%clk 0:03:36.6]} 17... Rxb2 {[%clk 0:04:38.2]} 18.
Ra1 {[%clk 0:03:17.8]} 18... Rb3 {[%clk 0:04:36.2]} 19. Rfc1 {[%clk 0:03:16.2]}
19... Rfb8 {[%clk 0:04:33.6]} 20. f4 {[%clk 0:03:12.3]} 20... Rxa3 {[%clk
0:04:31.6]} 21. Rxa3 {[%clk 0:03:10.9]} 21... Qxa3 {[%clk 0:04:31.5]} 22. Ne2
{[%clk 0:03:01.6]} 22... Qxe3+ {[%clk 0:04:29.7]} 23. Kh1 {[%clk 0:02:59.6]}
23... Qxe2 {[%clk 0:04:28.4]} 24. h3 {[%clk 0:02:56.5]} 24... Rb2 {[%clk
0:04:27]} 25. Rg1 {[%clk 0:02:55]} 25... Nf6 {[%clk 0:04:25.6]} 26. e5 {[%clk
0:02:49.3]} 26... Nh5 {[%clk 0:04:24.7]} 27. h4 {[%clk 0:02:45.2]} 27... Qf2
{[%clk 0:04:22.9]} 28. Kh2 {[%clk 0:02:43.5]} 28... Qxh4# {[%clk 0:04:21.9]} 0-1

[Event "Live Chess"]
[Site "Chess.com"]
[Date "2023.05.21"]
[Round "-"]
[White "lHolyDiverl"]
[Black "davigator"]
[Result "0-1"]
[WhiteElo "555"]
[BlackElo "2307"]
[TimeControl "300"]
[EndTime "8:31:36 PDT"]
[Termination "davigator won on time"]

1. d4 {[%clk 0:04:56.1]} 1... Nf6 {[%clk 0:04:58.3]} 2. Nc3 {[%clk 0:04:55]}
2... d5 {[%clk 0:04:52.3]} 3. Bf4 {[%clk 0:04:54]} 3... c5 {[%clk 0:04:49.6]} 4.
e3 {[%clk 0:04:50.9]} 4... Bd7 {[%clk 0:04:48.2]} 5. Nf3 {[%clk 0:04:42.8]} 5...
Qb6 {[%clk 0:04:45.3]} 6. Rb1 {[%clk 0:04:34.4]} 6... e6 {[%clk 0:04:43.2]} 7.
a4 {[%clk 0:04:18.7]} 7... a6 {[%clk 0:04:40.1]} 8. Ne5 {[%clk 0:03:49.7]} 8...
Be7 {[%clk 0:02:40.2]} 9. b3 {[%clk 0:02:50.6]} 9... cxd4 {[%clk 0:02:32.6]} 10.
exd4 {[%clk 0:02:18.3]} 10... Bb4 {[%clk 0:02:30.9]} 11. Qd3 {[%clk 0:01:26]}
11... Ne4 {[%clk 0:02:28.7]} 12. Nxd7 {[%clk 0:00:50.4]} 12... Nxd7 {[%clk
0:02:26.7]} 13. Bd2 {[%clk 0:00:41.4]} 13... Nxd2 {[%clk 0:02:25.1]} 14. Qxd2
{[%clk 0:00:39.6]} 14... Qa5 {[%clk 0:02:23]} 0-1